Cogmind - Beta 10.2 @@@ ROGUE MODE // 2022.01.06 @ 16:52:09 Player: Triffids Result: Destroyed by G-47 Trooper with Particle Gun Performance ------------- Evolutions (0) 0 Regions Visited (1) 200 Robots Destroyed (13) 65 Value Destroyed (203) 203 Prototype IDs (2) 40 Alien Tech Used (0) 0 Bonus (0) 0 TOTAL SCORE: 508 Bonus ------- None Cogmind --------- Core Integrity 0/250 Matter 241/300 Energy 100/100 System Corruption 0% Temperature Cool (9) Movement Core (150) Ox2 Location -10/Materials Parts ------- > --- POWER (1) -------- (None) > --- PROPULSION (2) --- (None) > --- UTILITY (2) ------ Medium Storage Unit > --- WEAPON (2) ------- (None) > --- INVENTORY (8) ---- Light Ion Engine Aluminum Leg Large Matter Pod (30) Sensor Array Propulsion Shielding Peak State ------------ > --- POWER ------------ Light Ion Engine > --- PROPULSION ------- Aluminum Leg Aluminum Leg > --- UTILITY ---------- Small Storage Unit Medium Storage Unit > --- WEAPON ----------- Assault Rifle Light Assault Rifle > --- INVENTORY -------- Light Ion Engine Aluminum Leg Large Matter Pod Sensor Array Propulsion Shielding Light Assault Rifle [Rating: 7] Favorites ----------- Power Light Ion Engine Engine Light Ion Engine Propulsion Aluminum Leg Leg Aluminum Leg Utility Small Storage Unit Storage Small Storage Unit Weapon Light Assault Rifle Ballistic Gun Light Assault Rifle Build | -11 -10 ------- Run | Scr Mat Slots Evolved . | . . Power . | . . Propulsion . | . . Utility . | . . Weapon . | . . Parts Attached 14 | 6 8 Power 3 | 1 2 Engine 3 | 1 2 Core . | . . Reactor . | . . Propulsion 4 | 2 2 Treads . | . . Leg 4 | 2 2 Wheel . | . . Hover . | . . Flight . | . . Utility 2 | 1 1 Device . | . . Storage 2 | 1 1 Processor . | . . Hackware . | . . Protection . | . . Artifact . | . . Weapon 5 | 2 3 Energy Gun . | . . Energy Cannon . | . . Ballistic Gun 5 | 2 3 Ballistic Cannon . | . . Launcher . | . . Special Weapon . | . . Impact Weapon . | . . Slashing Weapon . | . . Piercing Weapon . | . . Special Melee Weapon . | . . Unidentified Prototypes . | . . Parts Lost 6 | . 6 Power 1 | . 1 Propulsion 2 | . 2 Utility . | . . Weapon 3 | . 3 Highest Loss Streak 6 | . 6 Average Slot Usage (%) 80 | . 80 Engine 12 | . 12 Leg 25 | . 25 Storage 14 | . 14 Ballistic Gun 26 | . 26 Naked Turns . | . . Heaviest Build 14 | 10 14 Greatest Support 20 | 20 20 Greatest Overweight (x) 3 | 1 3 Average Overweight (x) . | . . Largest Inventory Capacity 10 | 6 10 Average Capacity 6 | 5 6 Most Carried 6 | 5 6 Average Carried 4 | 3 4 Final Capacity 8 | 6 8 Final Carried 5 | 2 5 Class Distribution -------------------- 100% | Mutant Dominant Class ---------------- Mutant | -10/Materials Resources | -11 -10 ----------- Run | Scr Mat Matter Collected 432 | 230 202 Remotely . | . . Salvage Created 380 | . 380 Parts 24 | . 24 Haulers Intercepted 1 | . 1 Recyclers Shooed 1 | . 1 Parts Field Recycled . | . . Retrieved Matter . | . . Parts Self-Destructed . | . . Prevented . | . . Kills | -11 -10 ------- Run | Scr Mat Combat Hostiles Destroyed 9 | . 9 Guns 9 | . 9 Classes Destroyed 6 | . 6 Tunneler 1 | . 1 Hauler 1 | . 1 Recycler 1 | . 1 Watcher 1 | . 1 Swarmer 6 | . 6 Grunt 3 | . 3 Best Kill Streak 7 | . 7 Combat Bots Only 3 | . 3 Max Kills in Single Turn 2 | . 2 Gunslinging . | . . Exploded . | . . Melee . | . . Uniques/NPCs Destroyed . | . . Combat | -11 -10 -------- Run | Scr Mat Damage Taken 859 | . 859 Core 261 | . 261 Absorbed by Shields . | . . Core Remaining (%) 100 | 100 . Volleys Fired 43 | . 43 Largest 2 | . 2 Hottest 40 | . 40 Shots Fired 79 | . 79 Gun 79 | . 79 Cannon . | . . Launcher . | . . Special . | . . Kinetic 79 | . 79 Thermal . | . . Explosive . | . . Electromagnetic . | . . Robot Hit Streak 8 | . 8 Robot Miss Streak 4 | . 4 Penetration Max . | . . Secondary Targets 4 | . 4 Max Gunslinging Chain 1 | . 1 Shots Hit Robots 45 | . 45 Core Hits 21 | . 21 Critical Hits . | . . Critical Kills . | . . Critical Parts Destroyed . | . . Melee Attacks . | . . Impact . | . . Slashing . | . . Piercing . | . . Sneak Attacks . | . . Combat Hostiles . | . . Follow-up Attacks . | . . Damage Inflicted 607 | . 607 Guns 504 | . 504 Cannons . | . . Explosions 103 | . 103 Melee . | . . Ramming . | . . Kinetic 504 | . 504 Thermal 103 | . 103 Explosive . | . . Electromagnetic . | . . Impact . | . . Slashing . | . . Piercing . | . . Highest Corruption . | . . Average Corruption . | . . Corruption Purged . | . . Overload Shots . | . . Overflow Damage 33 | . 33 Projectiles . | . . Explosions 33 | . 33 Melee . | . . Knockbacks . | . . Impact . | . . Kinetic . | . . Secondary . | . . Self-Inflicted Damage 114 | . 114 Shots 1 | . 1 Rammed . | . . Targets Rammed . | . . Kicked . | . . Crushed . | . . Highest Temperature 40 | . 40 Average Temperature 9 | . 9 Received Heat Transfer 327 | . 327 Siege Activations . | . . Robots Corrupted . | . . Combat Hostiles . | . . Parts Fried . | . . Impact Corruptions . | . . Robots Melted . | . . Combat Hostiles . | . . Parts Melted 1 | . 1 Heat Transferred 200 | . 200 Parts Sabotaged . | . . Parts Stolen . | . . Parts Stripped . | . . Power Chain Reactions . | . . Missiles Intercepted . | . . Alert | -11 -10 ------- Run | Scr Mat Peak Influence 274 | . 274 Initial . | . . Average 136 | . 149 Maximum Alert Level 1 | . 1 Low Security (%) 75 | 100 73 Level 1 24 | . 26 Level 2 . | . . Level 3 . | . . Level 4 . | . . Level 5 . | . . High Security . | . . Max Security . | . . Squads Dispatched . | . . Investigation . | . . Extermination . | . . Reinforcement . | . . Assault . | . . Garrison . | . . Intercept . | . . Construction Impeded . | . . Haulers Reinforced . | . . Stealth | -11 -10 --------- Run | Scr Mat Distress Signals . | . . Communications Jammed . | . . Distress Signals . | . . Times Spotted 15 | . 15 Peak Tracking Total 5 | . 5 Tactical Retreats 1 | . 1 Traps | -11 -10 ------- Run | Scr Mat Traps Triggered 2 | . 2 Indirectly . | . . Trap Hack Attempts . | . . Triggered . | . . Disarmed . | . . Reprogrammed . | . . Reused . | . . Traps Extracted . | . . Installed . | . . Triggered . | . . Machines | -11 -10 ---------- Run | Scr Mat Machines Disabled 2 | . 2 Max in Single Turn 1 | . 1 Machines Sabotaged . | . . Garrisons Compromised . | . . Overloaded Fab Kills . | . . Fab Network Shutdowns . | . . Hacking | -11 -10 --------- Run | Scr Mat Machines Accessed 1 | . 1 Terminals 1 | . 1 Fabricators . | . . Repair Stations . | . . Recycling Units . | . . Scanalyzers . | . . Garrison Access . | . . Total Hacks 6 | . 6 Successful 4 | . 4 Failed 2 | . 2 Catastrophic . | . . Database Lockouts . | . . Manual 1 | . 1 Terminals 6 | . 6 Fabricators . | . . Repair Stations . | . . Recycling Units . | . . Scanalyzers . | . . Garrison Access . | . . Terminal Hacks 3 | . 3 Prototype ID Bank 1 | . 1 Emergency Access Points 1 | . 1 Registered Components 1 | . 1 Fabricator Hacks . | . . Repair Station Hacks . | . . Recycling Unit Hacks . | . . Scanalyzer . | . . Garrison Access Hacks . | . . Unauthorized Hacks 1 | . 1 Terminals 1 | . 1 Botnet 1 | . 1 Fabricators . | . . Repair Stations . | . . Recycling Units . | . . Scanalyzers . | . . Garrison Access . | . . Data Cores Recovered . | . . Used . | . . Hacking Detections 1 | . 1 Full Trace Events . | . . Feedback Events . | . . Feedback Blocked . | . . Robot Schematics Acquired . | . . Robots Built . | . . Matter . | . . Time . | . . Total Robot Build Rating . | . . Part Schematics Acquired . | . . Parts Built . | . . Matter . | . . Time . | . . Total Part Build Rating . | . . Parts Repaired . | . . Time . | . . Parts Recycled . | . . Recycled Matter . | . . Retrieved Matter . | . . Retrieved Components . | . . Parts Scanalyzed . | . . Part Schematics Acquired . | . . Parts Damaged . | . . Bothacking | -11 -10 ------------ Run | Scr Mat Used RIF Installer . | . . Robots Hacked . | . . Non-combat . | . . Combat . | . . Robot Hacks Applied . | . . Relay Couplers Released . | . . Robots Rewired . | . . Allies Hacked . | . . Hacks Repelled . | . . Allies | -11 -10 -------- Run | Scr Mat Total Allies . | . . Largest Group . | . . Highest-Rated Group . | . . Highest-Rated Ally . | . . Total Orders . | . . Ally Attacks . | . . Total Damage . | . . Kills . | . . Allies Corrupted . | . . Allies Melted . | . . Intel | -11 -10 ------- Run | Scr Mat Robot Analysis Total . | . . Derelict Logs Recovered . | . . Drone Launches . | . . Drone Recoveries . | . . Exploration | -11 -10 ------------- Run | Scr Mat Turns Passed 425 | 38 387 Spaces Moved 238 | 35 203 Core 38 | 34 4 Treads . | . . Legs 200 | 1 199 Wheels . | . . Hover . | . . Flight . | . . Fastest Speed 50 | 50 120 Average Speed 114 | 74 121 Slowest Speed 200 | 120 200 Overloaded Moves . | . . Propulsion Burnouts . | . . Robots Hopped . | . . Cave-ins Triggered . | . . Exploration Rate (%) 24 | 3 45 Regions Visited 1 Branch Regions . Pre-discovered Areas . | . . Known Exits Taken . | . . Unknown Exits Taken 1 | 1 . Scrap Searched . | . . Spaces Dug . | . . Terrain Destroyed 35 | . 35 Melee . | . . Projectile . | . . AOE 35 | . 35 Terrain Rammed . | . . Walls Destroyed . | . . Machines Disabled . | . . Actions | -11 -10 --------- Run | Scr Mat Total 318 | 45 273 Wait 11 | . 11 Move 237 | 34 203 Hop . | . . Pick Up 10 | 5 5 Fast Attach 7 | 3 4 Attach 5 | 3 2 Detach 1 | . 1 Swap 2 | . 2 Drop 2 | . 2 Fire 43 | . 43 Melee . | . . Ram . | . . Kick . | . . Crush . | . . Escape Stasis . | . . Rewire . | . . Trap . | . . Miscellaneous . | . . Route ------- -11/Scrapyard -10/Materials (discovered 1 exit: [*Mat]) History --------- Turn | Location | Event 11 | -11/Scrapyard | Discovered new exit (range 15) 39 | -11/Scrapyard | Entered Materials 245 | -10/Materials | Discovered new exit (range 3) 310 | -10/Materials | Build established: Mutant 343 | -10/Materials | Core integrity fell below 50% 385 | -10/Materials | Core integrity fell below 20% 426 | -10/Materials | Destroyed by G-47 Trooper with Particle Gun Last Messages --------------- 00404_ K-01 Serf collects debris. 00404_ U-05 Engineer lays Concrete. 00404_ K-01 Serf collects debris. 00405_ U-05 Engineer lays Concrete. 00406_ Assault Rifle destroyed. 00408_ U-05 Engineer builds a Wall. 00408_ K-01 Serf collects debris. 00412_ U-05 Engineer builds a Wall. 00412_ K-01 Serf collects debris. 00416_ U-05 Engineer builds a Door. 00416_ K-01 Serf collects debris. 00416_ Aluminum Leg destroyed. 00420_ K-01 Serf collects debris. 00421_ U-05 Engineer lays Concrete. 00422_ K-01 Serf collects debris. 00423_ U-05 Engineer lays Concrete. 00423_ K-01 Serf collects debris. 00424_ U-05 Engineer builds a Wall. 00424_ Lgt. Assault Rifle destroyed. 00425_ K-01 Serf collects debris. Map ----- +----------------------------------------------------+ | ????????????# #????# + #??????????????? | | ????????????# #????# # #??????????????? | | ????????????# #????# ###########??????????????? | | ????????????# #????# ^ # #???????????????? | | ???########## #????# # """ #???????????????? | | ???# # #????# # "R #???????????????? | | ???# """ # #????# # """ #???????????????? | | ???# """ !# ###### + #???????????????? | | ???# """ # # #???????????????? | | ???# + # === #???????????????? | | ???# """ # # === #???????????????? | | ???# """ ### #### # == #???????????????? | | ???# """ ###+#### ##########???????????????? | | ???# # # # ??????????????????? | | ???########## + # ????????????????????? | | ????????????# # # ?? ??????????????????? | | ????????????# # # ? ?????? !???????????? | | ???????#######+##""" ###+###+###" ???????????? | | ???????# # # ""# # ??????????? | | ???????#=== # # """##+# =! ???????????? | | ???????#=== # #"" # [%[%= ?????????????? | | ######## = # # # *=!===#??????????????? | | # # # k # #| =% !=!%#??????????????? | | # # + =u #%* %=!!#??????????????? | | # " # # !=# #= k #??????????????? | | # """ #+##### = !;;;;;;@ #??????????????? | | # "" # #### !=! * g #??????????????? | | # """[# ^ #??????????????? | | # ""=+ #??????????????? | | # """[# "" """ """ """ #??????????????? | | # """ ## "Y """ """ """ #??????????????? | | # """ ## "" """ """ """a #??????????????? | | # " ## """ """ #??????????????? | | # ## ???#??????????????? | | # ## ??????????????????? | | #####+### ?????????????????? | | # # ?????????????????? | | # [ "T" + #"Y"######+#######??????????????????? | | # # #"""#????? ?????????????????????????? | | # # #####????? ?????????????????????????? | | ?######## ########?? ?????????????????????????? | | ?######## #?? ?????????????????????????? | | ?# ! # +????????????????????????????? | | ?# # #????????????????????????????? | | ?# + ###### #????????????????????????????? | | ?# """ # #???????????????????????????????????? | | ?# """ # #???????????????????????????????????? | | ?# """ # #???????????????????????????????????? | | ?############???????????????????????????????????? | | ????????????????????????????????????????????????? | +----------------------------------------------------+ Best States ------------- Heat Dissipation 25 Energy Generation 10 Energy Capacity 125 Matter Stores 292 Matter Capacity 300 Sight Range 16 Terrain Scan Density 10 Evasion (%) 40 Item Schematics ----------------- None Robot Schematics ------------------ None Fabricated ------------ Nothing Alien Tech Used ----------------- None Achievements -------------- None Challenges ------------ None Game ------ Seed MolecularPowerCannon Manual? 0 Play Time 00:11:33 Cumulative 94.8 hours Start 2022.01.06 @ 16:45:42 End 2022.01.06 @ 16:52:09 Sessions 1 Manual Loads 0 Difficulty Rogue Special Mode None Game No. 105 Rogue 105 Adventurer 0 Explorer 0 Win Type - Total 0 Types 0/0/0/0/0/0/0/0/0 Lore% 41 Gallery% 43 Achievement% 30 Wizard Run 0 Options --------- ASCII 0 Keyboard 1 Movement Vi Keybinds 0 Fullscreen 0 Font 20/SmallcapsGlow Map View 76x50 Tactical HUD 1 Map Filters NONE Filters NONE Steam 1 RUN: 48352e97-9e0b-458e-a309-ff5c74317999